bitfinex/quotes_BTCUSD_20230114
["timestamp","ask_amount","ask_price","bid_price","bid_amount"]
[1673739616041,1.41030443,21033.0,21032.0,0.00631617]
[1673739617055,0.98323335,21033.0,21032.0,0.00631617]
[1673739617899,1.45867635,21033.0,21032.0,0.00631617]
[1673739618108,1.88574743,21033.0,21032.0,0.00631617]
[1673739618880,2.36119043,21033.0,21032.0,0.00631617]
[1673739620702,2.72594621,21033.0,21032.0,0.00631617]
[1673739621214,2.36119043,21033.0,21032.0,0.00631617]
[1673739621811,2.35398799,21033.0,21032.0,0.00631617]
[1673739623537,2.35398799,21033.0,21032.0,0.00568456]
[1673739624046,2.35398799,21033.0,21032.0,0.28529051]
[1673739624047,0.60718842,21033.0,21032.0,0.28529051]
[1673739624304,0.72953473,21033.0,21032.0,1.65974577]
[1673739624554,0.01739,21033.0,21032.0,0.49099656]
[1673739625084,0.01739,21033.0,21032.0,0.485312]
[1673739625085,0.00139,21033.0,21032.0,0.485312]
[1673739625337,0.00339,21033.0,21032.0,0.724312]
[1673739625584,0.00139,21033.0,21032.0,0.661912]
[1673739625837,0.00339,21033.0,21032.0,0.799912]
[1673739626091,0.64098055,21035.0,21033.0,0.59966722]
[1673739626342,0.64098055,21035.0,21034.0,1.231724]
[1673739627105,0.54909098,21035.0,21034.0,1.231724]
[1673739627614,0.54909098,21035.0,21034.0,1.86816901]
[1673739628127,0.55009098,21035.0,21034.0,1.86816901]
[1673739628627,0.55109098,21035.0,21034.0,1.409437]
[1673739628906,0.55009098,21035.0,21034.0,0.95084]
[1673739629166,0.55109098,21035.0,21034.0,1.08984]
[1673739630184,0.002,21035.0,21034.0,1.74476345]
[1673739630435,0.002,21035.0,21034.0,2.14129545]
[1673739631743,0.002,21035.0,21034.0,2.13629545]
[1673739635669,0.002,21035.0,21034.0,1.481372]
[1673739635952,0.002,21035.0,21034.0,1.67222738]
[1673739636194,0.002,21035.0,21034.0,1.84900143]
[1673739636457,0.002,21035.0,21034.0,1.94900143]
[1673739636708,0.07404007,21041.0,21035.0,0.1]
[1673739636980,0.05843029,21039.0,21036.0,1.89762495]
[1673739637318,0.05843029,21039.0,21037.0,0.319578]
[1673739637486,0.05843029,21039.0,21038.0,0.203909]
[1673739638007,0.00725,21041.0,21038.0,0.203909]
[1673739638255,0.06146627,21041.0,21038.0,0.19072595]
[1673739638532,0.06146627,21041.0,21037.0,1.04312494]
[1673739638785,0.06146627,21041.0,21038.0,0.128]
[1673739639040,0.06146627,21041.0,21038.0,0.63394391]
[1673739639802,0.06146627,21041.0,21038.0,1.10927391]
[1673739640074,0.04923627,21041.0,21038.0,1.16427391]
[1673739641141,0.04923627,21041.0,21039.0,0.62693544]
[1673739641348,0.04923627,21041.0,21040.0,0.319632]
[1673739641612,0.00653,21041.0,21040.0,0.319632]
[1673739641869,0.02756376,21042.0,21040.0,0.61035795]
[1673739642165,0.00963376,21042.0,21041.0,0.280573]
[1673739642435,0.00963376,21042.0,21041.0,1.231097]
[1673739643221,0.00963376,21042.0,21041.0,1.89640014]
[1673739644519,0.00463376,21042.0,21041.0,2.03540014]
[1673739645612,0.00463376,21042.0,21041.0,1.370097]
[1673739645829,0.00463376,21042.0,21041.0,2.02243337]
[1673739647876,0.00463376,21042.0,21041.0,1.84587284]
[1673739649391,0.00463376,21042.0,21041.0,1.76907284]
[1673739653152,0.3871207,21043.0,21042.0,0.53704056]
[1673739653400,0.3871207,21043.0,21042.0,0.85663956]
[1673739654681,0.3891207,21043.0,21042.0,0.99563956]
[1673739655785,0.3956507,21043.0,21042.0,0.458599]
[1673739656026,0.43875844,21043.0,21042.0,0.458599]
[1673739656267,0.43875844,21043.0,21042.0,0.139]
[1673739656941,0.73875844,21043.0,21042.0,0.139]
[1673739657172,0.73413844,21043.0,21042.0,0.139]
[1673739659114,0.43413844,21043.0,21042.0,0.139]
[1673739659580,0.43413844,21043.0,21042.0,0.13926]
[1673739659836,0.42760844,21043.0,21042.0,0.13926]
[1673739660089,0.43413844,21043.0,21042.0,0.13926]
[1673739661853,0.73413844,21043.0,21042.0,0.13926]
[1673739662838,0.43413844,21043.0,21042.0,0.13926]
[1673739663354,0.42913844,21043.0,21042.0,0.13926]
[1673739663839,0.72913844,21043.0,21042.0,0.13926]
[1673739665600,0.3860307,21043.0,21042.0,0.13926]
[1673739665859,0.3860307,21043.0,21042.0,0.80134673]
[1673739666109,0.3718007,21043.0,21042.0,0.80134673]
[1673739666352,0.3698007,21043.0,21042.0,0.66234673]
[1673739666607,0.3632707,21043.0,21042.0,0.66234673]
[1673739667144,0.3632707,21043.0,21042.0,1.12197873]
[1673739667390,0.3632707,21043.0,21042.0,0.98197873]
[1673739667649,0.3632707,21043.0,21042.0,1.12297873]
[1673739667650,0.3642707,21043.0,21042.0,1.12297873]
[1673739667966,0.3642707,21043.0,21042.0,1.75589595]
[1673739668181,0.3642707,21043.0,21042.0,1.66517]
[1673739668489,0.3310607,21043.0,21042.0,1.66517]
[1673739668741,0.3300607,21043.0,21042.0,1.52417]
[1673739669799,0.3300607,21043.0,21042.0,2.10304685]
[1673739670053,0.01056258,21047.0,21046.0,0.3300607]
[1673739670307,0.01056258,21047.0,21046.0,2.77836865]
[1673739670564,0.01056258,21047.0,21046.0,2.5876427]
[1673739670816,0.01056258,21047.0,21046.0,2.5112427]
[1673739672093,0.01256258,21047.0,21046.0,2.6492427]
[1673739672373,0.01256258,21047.0,21046.0,2.71300396]
[1673739672592,0.01256258,21047.0,21046.0,1.76270596]
[1673739672850,0.01256258,21047.0,21046.0,1.16842383]
[1673739672851,0.01056258,21047.0,21046.0,1.16842383]
[1673739673103,0.00703258,21047.0,21046.0,1.30642383]
[1673739673353,0.00503258,21047.0,21046.0,0.96473783]
[1673739673616,0.00603258,21047.0,21046.0,1.10273783]
[1673739674895,0.00503258,21047.0,21046.0,1.28436983]
[1673739675138,0.00603258,21047.0,21046.0,1.42336983]
[1673739675412,0.00603258,21047.0,21046.0,1.80958352]
[1673739675757,0.00703258,21047.0,21046.0,1.76466757]
[1673739675911,0.00703258,21047.0,21046.0,1.69566757]
[1673739675912,0.00503258,21047.0,21046.0,1.69566757]
[1673739676187,0.00603258,21047.0,21046.0,1.83566757]
[1673739676410,0.00503258,21047.0,21046.0,1.69566757]
[1673739676676,0.00703258,21047.0,21046.0,1.93366757]
[1673739677678,0.00503258,21047.0,21046.0,1.79566757]
[1673739677930,0.00703258,21047.0,21046.0,2.2056653]
[1673739678205,0.01034247,21050.0,21046.0,3.72810345]
[1673739678460,0.002,21047.0,21046.0,1.9393444]
[1673739678710,0.002,21047.0,21046.0,2.9477851]
[1673739679000,0.002,21047.0,21046.0,2.42440633]
[1673739679244,0.01034247,21050.0,21046.0,2.28640633]
[1673739679516,0.01134247,21050.0,21049.0,0.0766]
[1673739679763,0.01134247,21050.0,21049.0,1.821425]
[1673739680806,0.01034247,21050.0,21049.0,1.821425]
[1673739681050,0.01134247,21050.0,21049.0,1.959425]
[1673739681559,0.01134247,21050.0,21049.0,1.407744]
[1673739681808,0.31883455,21050.0,21049.0,0.457582]
[1673739682119,0.31883455,21050.0,21049.0,0.138]
[1673739684305,0.30380133,21050.0,21049.0,0.138]
[1673739684807,0.30380133,21050.0,21047.0,0.50668219]
[1673739685341,0.30380133,21050.0,21047.0,0.98180819]
[1673739685599,0.30480133,21050.0,21049.0,0.078]
[1673739685846,0.00653,21049.0,21047.0,0.50668219]
[1673739686329,0.00653,21049.0,21048.0,0.319632]
[1673739686851,2.04763369,21049.0,21046.0,0.34943757]
[1673739687151,0.48570169,21048.0,21047.0,0.139]
[1673739687363,0.48570169,21048.0,21046.0,0.34943757]
[1673739687364,1.70964003,21048.0,21046.0,0.34943757]
[1673739687644,0.87720169,21047.0,21046.0,0.34943757]
[1673739687866,1.98125569,21047.0,21046.0,0.34943757]
[1673739688130,1.48975569,21047.0,21046.0,0.34943757]
[1673739688912,1.48975569,21047.0,21046.0,0.36043757]
[1673739688913,1.51975569,21047.0,21046.0,0.36043757]
[1673739689167,1.41975569,21047.0,21046.0,0.36043757]
[1673739689419,1.71975569,21047.0,21046.0,0.36043757]
[1673739689671,2.05682407,21047.0,21046.0,0.36043757]
[1673739689925,2.05682407,21047.0,21046.0,0.35992757]
[1673739690691,2.05682407,21047.0,21046.0,0.36066757]
[1673739691217,1.71975569,21047.0,21046.0,0.36066757]
[1673739691498,1.71975569,21047.0,21043.0,1.19572884]
[1673739691499,0.03744574,21044.0,21043.0,1.19572884]
[1673739691731,1.46302774,21044.0,21043.0,1.19572884]
[1673739692004,2.40825943,21044.0,21043.0,1.19572884]
[1673739692293,2.76279801,21044.0,21043.0,1.19572884]
[1673739692557,2.55007486,21044.0,21043.0,1.19572884]
[1673739693092,2.59107486,21044.0,21043.0,1.19872884]
[1673739693354,2.80379801,21044.0,21043.0,1.19872884]
[1673739694148,2.59107486,21044.0,21043.0,1.19872884]
[1673739694647,3.06517703,21044.0,21043.0,1.19872884]
[1673739694967,0.1,21043.0,21037.0,0.00844494]
[1673739695164,0.483758,21042.0,21037.0,0.00844494]
[1673739695441,0.23497,21038.0,21037.0,0.00844494]
[1673739695666,1.66096,21038.0,21037.0,0.00844494]
[1673739695920,1.57208,21038.0,21037.0,0.00844494]
[1673739696438,1.57208,21038.0,21037.0,0.08844494]
[1673739696705,1.58348,21038.0,21037.0,0.00844494]
[1673739696944,1.21015,21038.0,21037.0,0.01644494]
[1673739697199,1.14709,21038.0,21037.0,0.4907722]
[1673739697480,0.102,21038.0,21037.0,0.29605089]
[1673739697716,0.102,21038.0,21037.0,0.67564889]
[1673739697967,0.102,21038.0,21037.0,1.47063289]
[1673739698223,0.31882612,21040.0,21037.0,1.93798489]
[1673739698489,0.0767,21042.0,21038.0,0.303855]
[1673739698795,0.35069061,21041.0,21039.0,0.19072595]
[1673739698990,0.35069061,21041.0,21038.0,0.76605295]
[1673739699277,0.35069061,21041.0,21039.0,0.475294]
[1673739700036,0.009,21041.0,21039.0,0.475294]
[1673739700292,0.0767,21042.0,21040.0,0.54743657]
[1673739700543,0.0767,21042.0,21041.0,0.475262]
[1673739700796,0.11434574,21044.0,21041.0,0.950524]
[1673739701048,0.11434574,21044.0,21041.0,1.14124995]
[1673739701329,0.47741967,21044.0,21041.0,0.950524]
[1673739702066,0.003,21042.0,21041.0,0.985524]
[1673739702320,0.03744574,21044.0,21041.0,0.950524]
[1673739702612,0.09652574,21044.0,21041.0,0.958524]
[1673739702830,0.00152574,21044.0,21042.0,0.58357308]
[1673739703101,0.00152574,21044.0,21042.0,1.05881008]
[1673739703594,0.09652574,21044.0,21042.0,1.05881008]
[1673739703850,0.00152574,21044.0,21042.0,1.05881008]
[1673739704670,0.00152574,21044.0,21042.0,1.05896008]
[1673739704915,0.09252574,21044.0,21042.0,1.06696008]
[1673739705156,0.09252574,21044.0,21043.0,0.65997271]
[1673739706484,0.00152574,21044.0,21043.0,0.65997271]
[1673739706677,0.09252574,21044.0,21043.0,0.66797271]
[1673739708153,0.64209274,21044.0,21043.0,0.008]
[1673739708431,1.82756427,21044.0,21043.0,0.008]
[1673739709446,2.22345889,21044.0,21043.0,0.008]
[1673739709696,2.12345889,21044.0,21043.0,0.008]
[1673739710762,2.34260407,21044.0,21043.0,0.008]
[1673739711241,2.81670624,21044.0,21043.0,0.008]
[1673739711490,2.81670624,21044.0,21043.0,0.00388972]
[1673739711748,2.64084137,21044.0,21043.0,0.00388972]
[1673739712010,0.95105704,21044.0,21043.0,0.19461567]
[1673739712249,0.39076304,21044.0,21043.0,0.00388972]
[1673739712783,0.39076304,21044.0,21043.0,0.65931775]
[1673739712784,0.09252574,21044.0,21043.0,0.65931775]
[1673739713783,0.09252574,21044.0,21043.0,0.00388972]
[1673739715051,0.09252574,21044.0,21043.0,0.66873607]
[1673739715549,0.08327317,21044.0,21043.0,0.66873607]
[1673739716354,0.08327317,21044.0,21043.0,0.28349567]
[1673739716612,0.08327317,21044.0,21043.0,1.62996167]
[1673739716906,0.08327317,21044.0,21043.0,1.43923572]
[1673739717703,0.14519168,21045.0,21043.0,1.435346]
[1673739718004,0.14519168,21045.0,21043.0,1.115714]
[1673739718263,0.83946171,21051.0,21044.0,0.396532]
[1673739718264,0.15179753,21051.0,21044.0,0.396532]
[1673739718556,0.15179753,21051.0,21048.0,0.0769]
[1673739718557,0.01005407,21051.0,21048.0,0.0769]
[1673739718819,0.25,21050.0,21049.0,1.46043295]
[1673739719068,0.25,21050.0,21049.0,1.269794]
[1673739719592,0.33977897,21048.0,21047.0,0.475105]
[1673739719843,0.33977897,21048.0,21046.0,0.475147]
[1673739720097,0.33977897,21048.0,21047.0,0.319632]
[1673739720648,0.37294271,21051.0,21047.0,0.319632]
[1673739720889,1.31476318,21048.0,21044.0,0.031]
[1673739721152,0.06959,21045.0,21044.0,0.031]
[1673739721423,0.01503,21047.0,21044.0,0.64758596]
[1673739721681,0.490161,21047.0,21044.0,0.64758596]
[1673739722121,0.63201062,21047.0,21044.0,0.64758596]
[1673739722353,0.3,21046.0,21044.0,0.031]
[1673739722568,0.475172,21045.0,21043.0,0.52119252]
[1673739723001,0.950344,21045.0,21043.0,0.52119252]
[1673739723376,0.950344,21045.0,21044.0,0.092]
[1673739723628,0.32515477,21044.0,21043.0,0.00051]
[1673739723869,0.32515477,21044.0,21043.0,0.09251]
[1673739723870,0.72549439,21044.0,21043.0,0.09251]
[1673739724096,0.72549439,21044.0,21043.0,0.00051]
[1673739724097,1.46833762,21044.0,21043.0,0.00051]
[1673739724331,2.18300781,21044.0,21043.0,0.00051]
[1673739724563,2.00729009,21044.0,21043.0,0.00051]
[1673739725045,1.90729009,21044.0,21043.0,0.00051]
[1673739725516,2.1999519,21044.0,21043.0,0.00851]
[1673739725750,2.1089519,21044.0,21043.0,0.00051]
[1673739726004,1.89633672,21044.0,21043.0,0.00851]
[1673739726277,0.34313375,21044.0,21043.0,0.19123595]
[1673739726507,0.28931726,21046.0,21043.0,0.52857166]
[1673739726748,0.091,21044.0,21043.0,0.09739]
[1673739726979,0.091,21044.0,21043.0,0.986476]
[1673739727261,0.49507123,21048.0,21043.0,1.50917221]
[1673739727499,0.35305626,21048.0,21044.0,0.202816]
[1673739727737,0.35305626,21048.0,21044.0,0.475193]
[1673739728216,0.008,21046.0,21044.0,0.475193]
[1673739728465,0.14201497,21049.0,21045.0,0.319522]
[1673739728702,0.008,21048.0,21046.0,0.475149]
[1673739728955,0.68048116,21050.0,21046.0,0.475149]
[1673739729433,0.48744598,21050.0,21046.0,0.475149]
[1673739730045,0.008,21048.0,21047.0,0.19072595]
[1673739730249,0.15206904,21051.0,21048.0,0.9502]
[1673739730476,0.01005407,21051.0,21048.0,1.14092595]
[1673739731199,0.038,21050.0,21049.0,1.4285217]
[1673739731453,0.01005407,21051.0,21050.0,0.20265]
[1673739731701,0.04805407,21051.0,21050.0,0.677709]
[1673739731930,0.01005407,21051.0,21050.0,0.677709]
[1673739732178,0.37651617,21051.0,21048.0,0.5671]
[1673739732424,0.33197196,21050.0,21047.0,0.62552776]
[1673739732665,0.33197196,21050.0,21048.0,0.319522]
[1673739732914,0.33197196,21050.0,21047.0,0.62552776]
[1673739733658,0.33197196,21050.0,21045.0,0.944366]
[1673739734184,0.33997196,21050.0,21047.0,0.092]
[1673739734413,0.33197196,21050.0,21046.0,0.51683692]
[1673739734649,0.33197196,21050.0,21047.0,0.036]
[1673739734650,0.33497196,21050.0,21047.0,0.036]
[1673739734861,0.33497196,21050.0,21047.0,0.00013209]
[1673739735114,0.34297196,21050.0,21047.0,0.00013209]
[1673739735365,0.33197196,21050.0,21046.0,0.51683692]
[1673739735602,0.81503196,21050.0,21046.0,0.60883692]
[1673739735854,0.81503196,21050.0,21046.0,0.51683692]
[1673739736368,0.38217632,21049.0,21046.0,0.51683692]
[1673739736868,0.38217632,21049.0,21047.0,0.036]
[1673739737120,0.38217632,21049.0,21046.0,0.50683692]
[1673739737375,0.85726032,21049.0,21046.0,0.50683692]
[1673739737613,0.85726032,21049.0,21046.0,0.59883692]
[1673739737872,0.85726032,21049.0,21044.0,0.475179]
[1673739738111,0.00587,21048.0,21047.0,0.092]
[1673739738637,1.484518,21048.0,21044.0,0.60577159]
[1673739738883,1.484518,21048.0,21042.0,0.475239]
[1673739739129,0.82885076,21047.0,21043.0,0.48772244]
[1673739739633,0.82885076,21047.0,21046.0,0.092]
[1673739739879,0.82885076,21047.0,21043.0,0.48772244]
[1673739740135,0.83685076,21047.0,21043.0,0.57972244]
[1673739740622,0.82885076,21047.0,21043.0,0.48857244]
[1673739740886,0.83685076,21047.0,21046.0,0.092]
[1673739741395,0.016,21047.0,21046.0,0.87054337]
[1673739741642,0.016,21047.0,21046.0,0.67981742]
[1673739741904,0.28217035,21048.0,21046.0,0.99933942]
[1673739742168,0.28217035,21048.0,21046.0,0.092]
[1673739742402,0.28804035,21048.0,21045.0,0.47517]
[1673739742643,0.28804035,21048.0,21046.0,0.107]
[1673739742644,0.007,21047.0,21046.0,0.107]
[1673739742919,0.28804035,21048.0,21045.0,0.47517]
[1673739743164,0.29104035,21048.0,21046.0,0.044]
[1673739743408,0.28804035,21048.0,21046.0,0.475148]
[1673739743666,0.28804035,21048.0,21046.0,0.583148]
[1673739743919,0.006,21047.0,21046.0,0.475148]
[1673739744162,0.006,21047.0,21046.0,0.519148]
[1673739744423,0.08247,21050.0,21046.0,0.950297]
[1673739744674,0.29011721,21050.0,21047.0,0.19072595]
[1673739744927,0.29011721,21050.0,21048.0,0.475104]
[1673739745921,0.077,21050.0,21048.0,0.475104]
[1673739746153,0.3363218,21051.0,21048.0,0.475104]
[1673739746392,0.077,21050.0,21048.0,0.483104]
[1673739746636,0.3363218,21051.0,21048.0,0.95662527]
[1673739746742,0.003,21050.0,21048.0,1.00062527]
[1673739747006,0.003,21050.0,21049.0,0.61814517]
[1673739747250,0.003,21050.0,21049.0,1.09322117]
[1673739748577,0.3363218,21051.0,21049.0,1.20022117]
[1673739748767,0.007,21050.0,21049.0,1.20022117]
[1673739749276,0.3363218,21051.0,21049.0,1.09322117]
[1673739749768,0.3423218,21051.0,21049.0,0.61814517]
[1673739750016,0.01005407,21051.0,21049.0,0.950156]
[1673739750277,0.01005407,21051.0,21050.0,0.319522]
[1673739750515,0.01005407,21051.0,21050.0,1.26964]
[1673739751271,0.01605407,21051.0,21050.0,1.26964]
[1673739751512,0.01005407,21051.0,21050.0,1.26964]
[1673739751759,0.01605407,21051.0,21050.0,1.37764]
[1673739752002,0.01605407,21051.0,21050.0,1.8630752]
[1673739752524,0.01605407,21051.0,21050.0,1.37764]
[1673739753033,0.01605407,21051.0,21050.0,1.80284]
[1673739753287,0.01605407,21051.0,21050.0,2.08104988]
[1673739754275,0.01005407,21051.0,21050.0,1.97304988]
[1673739754528,0.01005407,21051.0,21050.0,2.11304988]
[1673739754780,0.01005407,21051.0,21050.0,1.97304988]
[1673739755033,0.0051601,21051.0,21050.0,1.93384]
[1673739755280,0.0051601,21051.0,21050.0,1.79484]
[1673739755528,0.0051601,21051.0,21050.0,1.53384]
[1673739755774,0.0051601,21051.0,21050.0,2.07699665]
[1673739756300,0.0052601,21051.0,21050.0,2.07699665]
[1673739756585,0.0052601,21051.0,21050.0,1.60193765]
[1673739757063,0.0052601,21051.0,21050.0,1.93799665]
[1673739757319,0.0072601,21051.0,21050.0,2.2667226]
[1673739757576,0.0052601,21051.0,21050.0,1.26964]
[1673739757833,0.0062601,21051.0,21050.0,1.35364]
[1673739760269,0.0062601,21051.0,21050.0,1.35382155]
[1673739760711,0.0052601,21051.0,21050.0,1.26982155]
[1673739761605,0.0062601,21051.0,21050.0,1.40782155]
[1673739762719,0.0062601,21051.0,21050.0,2.02449176]
[1673739762952,0.0062601,21051.0,21050.0,0.457522]
[1673739763223,0.52033916,21051.0,21050.0,0.138]
[1673739763478,1.00387516,21051.0,21050.0,0.138]
[1673739763724,1.08962107,21051.0,21050.0,0.138]
[1673739764243,1.40241999,21051.0,21050.0,0.138]
[1673739764452,1.40241999,21051.0,21050.0,0.07681412]
[1673739764713,1.30241999,21051.0,21050.0,0.07681412]
[1673739764941,1.08862107,21051.0,21045.0,0.56788091]
[1673739765224,0.1264,21049.0,21045.0,0.56788091]
[1673739765485,0.475109,21048.0,21045.0,0.56788091]
[1673739766247,0.950213,21048.0,21045.0,0.56788091]
[1673739766764,1.033213,21048.0,21045.0,0.57588091]
[1673739767028,0.00587,21047.0,21045.0,0.008]
[1673739767280,0.950298,21046.0,21045.0,0.008]
[1673739767535,1.25630419,21046.0,21045.0,0.008]
[1673739767788,0.950298,21046.0,21041.0,0.49744949]
[1673739768041,0.950298,21046.0,21041.0,0.62902171]
[1673739768289,1.076698,21046.0,21045.0,0.004]
[1673739768541,1.60773144,21046.0,21041.0,0.65664874]
[1673739768792,1.4036788,21046.0,21045.0,0.063]
[1673739769056,1.6956788,21046.0,21041.0,0.65664874]
[1673739769302,1.49631297,21046.0,21041.0,0.91137469]
[1673739769553,1.49631297,21046.0,21041.0,0.84737469]
[1673739769554,1.63500066,21046.0,21041.0,0.84737469]
[1673739769831,1.051298,21046.0,21041.0,0.84737469]
[1673739770082,0.27743529,21045.0,21041.0,0.84737469]
[1673739770328,0.475199,21044.0,21041.0,0.65664874]
[1673739770836,0.28421,21042.0,21041.0,0.07194949]
[1673739771100,0.28421,21042.0,21041.0,0.00794949]
[1673739771467,0.759449,21042.0,21041.0,0.06694949]
[1673739771654,0.475232,21043.0,21042.0,0.60763802]
[1673739771655,0.481102,21043.0,21042.0,0.60763802]
[1673739771948,0.012,21044.0,21042.0,0.60763802]
[1673739772171,0.28025349,21045.0,21042.0,0.60763802]
[1673739772436,0.28025349,21045.0,21042.0,0.79836397]
[1673739772692,0.28025349,21045.0,21041.0,0.00794949]
[1673739772949,0.28025349,21045.0,21041.0,0.49236699]
[1673739773223,0.28025349,21045.0,21041.0,0.68309294]
[1673739773462,0.28025349,21045.0,21042.0,0.53643805]
[1673739773724,0.069,21043.0,21042.0,0.54343805]
[1673739773981,0.28025349,21045.0,21043.0,0.47415761]
[1673739774241,0.40425349,21045.0,21043.0,0.47415761]
[1673739774496,0.28025349,21045.0,21041.0,1.61551575]
[1673739774743,0.40325349,21045.0,21042.0,0.006]
[1673739775263,0.36164631,21044.0,21043.0,0.006]
[1673739775506,0.66164631,21044.0,21041.0,0.66501075]
[1673739775761,0.36751631,21044.0,21041.0,0.66501075]
[1673739776256,0.36751631,21044.0,21041.0,0.66001075]
[1673739777021,0.84272431,21044.0,21041.0,0.66001075]
[1673739777274,0.84272431,21044.0,21042.0,0.006]
[1673739777527,1.31791831,21044.0,21041.0,0.66001075]
[1673739777779,1.31791831,21044.0,21041.0,0.66601075]
[1673739777780,0.28513888,21043.0,21041.0,0.66601075]
[1673739778029,1.23557388,21043.0,21041.0,0.00294949]
[1673739778278,1.23557388,21043.0,21041.0,0.00994949]
[1673739778541,1.23557388,21043.0,21041.0,0.00294949]
[1673739778791,1.13740169,21042.0,21041.0,0.00894949]
[1673739779041,2.35619466,21042.0,21041.0,0.00894949]
[1673739779296,2.66323158,21042.0,21041.0,0.00894949]
[1673739779558,3.13733375,21042.0,21041.0,0.00294949]
[1673739779810,0.00555531,21040.0,21037.0,0.00844494]
[1673739780060,0.25757,21038.0,21037.0,0.00844494]
[1673739780323,0.7329,21038.0,21037.0,0.00844494]
[1673739780593,0.27377275,21039.0,21037.0,0.66649351]
[1673739780856,0.27964275,21039.0,21037.0,0.66649351]
[1673739781116,0.27964275,21039.0,21037.0,0.00844494]
[1673739781632,0.135,21038.0,21037.0,0.00944494]
[1673739782654,0.54104275,21039.0,21037.0,0.00944494]
[1673739782912,0.54104275,21039.0,21037.0,0.00844494]
[1673739782913,1.38673169,21038.0,21037.0,0.00844494]
[1673739783175,2.10076169,21038.0,21037.0,0.00944494]
[1673739783453,1.98776169,21038.0,21037.0,0.00844494]
[1673739783687,1.98776169,21038.0,21037.0,0.00944494]
[1673739783936,1.98776169,21038.0,21037.0,0.00844494]
[1673739783937,3.04382349,21038.0,21037.0,0.00844494]
[1673739784281,1.94058184,21038.0,21037.0,0.20017089]
[1673739784471,0.86265015,21038.0,21037.0,0.00944494]
[1673739784740,0.38732015,21038.0,21037.0,0.00944494]
[1673739785247,0.51372015,21038.0,21037.0,0.00944494]
[1673739785514,0.53672015,21038.0,21037.0,0.00944494]
[1673739785784,0.83672015,21038.0,21037.0,0.00844494]
[1673739786033,0.94972015,21038.0,21037.0,0.00944494]
[1673739786788,0.92815015,21038.0,21037.0,0.00944494]
[1673739787037,0.62815015,21038.0,21037.0,0.00944494]
[1673739787555,0.2575,21038.0,21037.0,0.00944494]
[1673739787814,0.2575,21038.0,21037.0,0.54364266]
[1673739788614,0.249,21038.0,21037.0,0.54364266]
[1673739790873,0.249,21038.0,21037.0,0.00944494]
[1673739791128,0.7428237,21038.0,21037.0,0.00944494]
[1673739791377,1.8193837,21038.0,21037.0,0.00944494]
[1673739791632,2.65166895,21038.0,21036.0,0.0042918]
[1673739791890,0.15362614,21036.0,21035.0,0.00806499]
[1673739792141,3.26295975,21036.0,21035.0,0.00806499]
[1673739792406,3.56295975,21036.0,21035.0,0.00806499]
[1673739793181,3.69895975,21036.0,21035.0,0.00806499]
[1673739793429,0.1,21035.0,21034.0,0.00880453]
[1673739793705,1.66813661,21035.0,21034.0,0.00880453]
[1673739793962,2.14353461,21035.0,21034.0,0.00880453]
[1673739795226,2.27953461,21035.0,21033.0,0.0089295]
[1673739795479,1.4172329,21034.0,21033.0,0.0089295]
[1673739795735,2.6680729,21034.0,21033.0,0.0089295]
[1673739796767,2.8040729,21034.0,21033.0,0.0089295]
[1673739797287,2.12675979,21034.0,21033.0,0.19965545]
[1673739797543,1.86495979,21034.0,21033.0,0.19965545]
[1673739797802,1.86495979,21034.0,21033.0,0.0089295]
[1673739798822,1.87345979,21034.0,21033.0,0.0089295]
[1673739799084,2.13436118,21034.0,21033.0,0.0089295]
[1673739799333,1.83344308,21034.0,21033.0,0.0089295]
[1673739799589,2.13344308,21034.0,21033.0,0.0089295]
[1673739799853,2.26014308,21034.0,21033.0,0.0089295]
[1673739800608,2.69388,21034.0,21033.0,0.0089295]
[1673739801883,2.69388,21034.0,21033.0,0.00324279]
[1673739803200,2.69975,21034.0,21033.0,0.00324279]
[1673739803719,3.33315,21034.0,21033.0,0.00324279]
[1673739804228,2.57935156,21034.0,21033.0,0.00324279]
[1673739804467,2.57935156,21034.0,21033.0,0.18396874]
[1673739804468,2.15021459,21034.0,21033.0,0.18396874]
[1673739804732,1.57841169,21034.0,21031.0,0.00894433]
[1673739804997,0.31948779,21033.0,21031.0,0.00894433]
[1673739805767,0.31948779,21033.0,21031.0,0.67020287]
[1673739806538,0.45448779,21033.0,21031.0,0.67020287]
[1673739807307,0.1435,21033.0,21031.0,0.67020287]
[1673739809390,0.135,21033.0,21032.0,0.76411787]
[1673739809648,0.135,21033.0,21032.0,1.90160714]
[1673739810929,0.35395274,21036.0,21032.0,1.90160714]
[1673739811183,0.35395274,21036.0,21032.0,1.77281109]
[1673739811184,0.00755614,21036.0,21032.0,1.77281109]
[1673739811440,0.00755614,21036.0,21033.0,0.579032]
[1673739811697,0.00755614,21036.0,21033.0,1.054468]
[1673739811950,0.00755614,21036.0,21033.0,1.06885497]
[1673739812199,0.12555614,21036.0,21033.0,1.06885497]
[1673739812457,0.00755614,21036.0,21033.0,1.06885497]
[1673739812715,0.12555614,21036.0,21033.0,1.07085497]
[1673739812971,0.11968614,21036.0,21034.0,0.31692595]
[1673739813227,0.11968614,21036.0,21035.0,1.397018]
[1673739813831,0.11968614,21036.0,21035.0,1.97789834]
[1673739814028,0.00168614,21036.0,21035.0,1.97769834]
[1673739814327,0.01568614,21036.0,21035.0,1.85119834]
[1673739814546,0.00168614,21036.0,21035.0,1.85119834]
[1673739815085,0.22369431,21039.0,21036.0,0.66921469]
[1673739815305,0.22369431,21039.0,21036.0,1.33531564]
[1673739815555,0.00587,21037.0,21033.0,0.01438697]
[1673739815848,0.0085,21036.0,21033.0,0.01438697]
[1673739816127,0.483893,21036.0,21033.0,0.01438697]
[1673739816414,0.2522564,21035.0,21033.0,0.01438697]
[1673739816640,0.883893,21036.0,21033.0,0.01438697]
[1673739816641,0.483893,21036.0,21035.0,0.027]
[1673739816915,0.24375538,21038.0,21035.0,0.19072595]
[1673739817161,0.014,21036.0,21035.0,0.19072595]
[1673739817414,0.014,21036.0,21034.0,0.6494944]
[1673739817685,0.02,21036.0,21035.0,0.024]
[1673739817940,0.71908738,21038.0,21034.0,0.6494944]
[1673739818232,0.015,21036.0,21035.0,0.026]
[1673739818454,0.015,21036.0,21034.0,0.6494944]
[1673739818754,0.015,21036.0,21035.0,0.026]
[1673739818755,0.027,21036.0,21035.0,0.026]
[1673739819246,0.027,21036.0,21035.0,0.50434676]
[1673739819498,0.027,21036.0,21035.0,0.504654]
[1673739819752,0.475332,21038.0,21035.0,0.478654]
[1673739819975,0.015,21036.0,21035.0,0.504654]
[1673739821012,0.475332,21038.0,21035.0,0.478654]